[Event "Early-Titled-Tuesday-Blitz-February-13-2024"]
[Site "Chess.com"]
[Date "2024.02.13"]
[Round "4"]
[White "GulamaliRises"]
[Black "lachesisQ"]
[Result "0-1"]
[WhiteElo "2635"]
[BlackElo "3052"]
[TimeControl "180+1"]
[EndTime "8:44:50 PST"]
[Termination "lachesisQ won by checkmate"]

1. e4 {[%clk 0:03:00.9]} 1... c5 {[%clk 0:02:59.6]} 2. Nf3 {[%clk 0:03:00.1]}
2... d6 {[%clk 0:03:00.3]} 3. d4 {[%clk 0:02:59.2]} 3... cxd4 {[%clk 0:03:01.2]}
4. Nxd4 {[%clk 0:02:59]} 4... Nf6 {[%clk 0:03:01.8]} 5. Nc3 {[%clk 0:02:59.6]}
5... a6 {[%clk 0:03:02.3]} 6. Be3 {[%clk 0:02:59.9]} 6... Ng4 {[%clk 0:03:01.6]}
7. Bc1 {[%clk 0:02:59.7]} 7... Nf6 {[%clk 0:03:01.3]} 8. Be3 {[%clk 0:03:00]}
8... e5 {[%clk 0:03:01.7]} 9. Nb3 {[%clk 0:02:59.8]} 9... Be7 {[%clk 0:03:01]}
10. f3 {[%clk 0:02:59.7]} 10... Be6 {[%clk 0:03:00.9]} 11. Qd2 {[%clk
0:02:57.9]} 11... h5 {[%clk 0:02:57.8]} 12. Be2 {[%clk 0:02:54.4]} 12... Nbd7
{[%clk 0:02:57.5]} 13. Nd5 {[%clk 0:02:54]} 13... Bxd5 {[%clk 0:02:56.4]} 14.
exd5 {[%clk 0:02:54.9]} 14... a5 {[%clk 0:02:55.4]} 15. Rc1 {[%clk 0:02:25]}
15... a4 {[%clk 0:02:52]} 16. Na1 {[%clk 0:02:25.4]} 16... Qb8 {[%clk
0:02:44.8]} 17. c4 {[%clk 0:02:23.8]} 17... Bd8 {[%clk 0:02:44.8]} 18. Nc2
{[%clk 0:02:21.7]} 18... O-O {[%clk 0:02:37.3]} 19. O-O {[%clk 0:02:20.2]} 19...
Ba5 {[%clk 0:02:31.2]} 20. Qd3 {[%clk 0:02:12.6]} 20... Re8 {[%clk 0:02:29.6]}
21. Qf5 {[%clk 0:02:10.3]} 21... g6 {[%clk 0:02:19.6]} 22. Qg5 {[%clk
0:02:10.4]} 22... Qd8 {[%clk 0:02:19.8]} 23. Qh4 {[%clk 0:02:09.1]} 23... Bb6
{[%clk 0:02:19.1]} 24. Qf2 {[%clk 0:02:07.7]} 24... Bxe3 {[%clk 0:02:18.2]} 25.
Qxe3 {[%clk 0:02:06.7]} 25... Qa5 {[%clk 0:02:15]} 26. Na3 {[%clk 0:02:05]}
26... Kg7 {[%clk 0:01:58.7]} 27. Nb5 {[%clk 0:01:57.5]} 27... Ra6 {[%clk
0:01:58.6]} 28. Kh1 {[%clk 0:01:50.3]} 28... Qd8 {[%clk 0:01:55.8]} 29. b4
{[%clk 0:01:18]} 29... axb3 {[%clk 0:01:44.7]} 30. axb3 {[%clk 0:01:18.9]} 30...
h4 {[%clk 0:01:45.1]} 31. Ra1 {[%clk 0:01:11.6]} 31... Qb8 {[%clk 0:01:35.9]}
32. b4 {[%clk 0:00:57.2]} 32... Nh5 {[%clk 0:01:35.4]} 33. Ra3 {[%clk
0:00:57.2]} 33... Nf4 {[%clk 0:01:34.5]} 34. Rfa1 {[%clk 0:00:57.2]} 34... h3
{[%clk 0:01:23.6]} 35. g3 {[%clk 0:00:54.2]} 35... Ng2 {[%clk 0:01:23.7]} 36.
Qc3 {[%clk 0:00:50.3]} 36... Rxa3 {[%clk 0:00:57.3]} 37. Rxa3 {[%clk 0:00:49.4]}
37... Nf6 {[%clk 0:00:57.6]} 38. Ra7 {[%clk 0:00:29.2]} 38... e4 {[%clk
0:00:49]} 39. f4 {[%clk 0:00:28.7]} 39... e3 {[%clk 0:00:49.5]} 40. c5 {[%clk
0:00:22.7]} 40... dxc5 {[%clk 0:00:32.3]} 41. bxc5 {[%clk 0:00:23.6]} 41... Re7
{[%clk 0:00:23.8]} 42. d6 {[%clk 0:00:22.7]} 42... Re6 {[%clk 0:00:24.1]} 43. d7
{[%clk 0:00:17.5]} 43... Kh7 {[%clk 0:00:20.4]} 44. Qd4 {[%clk 0:00:17.3]} 44...
Qd8 {[%clk 0:00:12.8]} 45. Rxb7 {[%clk 0:00:17.4]} 45... Re4 {[%clk 0:00:13.2]}
46. Qd3 {[%clk 0:00:12.2]} 46... Ra4 {[%clk 0:00:12.4]} 47. Nc3 {[%clk
0:00:05.2]} 47... Ra1+ {[%clk 0:00:12.6]} 48. Rb1 {[%clk 0:00:05]} 48... Rxb1+
{[%clk 0:00:13]} 49. Nxb1 {[%clk 0:00:05.9]} 49... Qxd7 {[%clk 0:00:12.5]} 50.
Qxd7 {[%clk 0:00:05.9]} 50... Nxd7 {[%clk 0:00:13.4]} 51. c6 {[%clk 0:00:06.8]}
51... Nb6 {[%clk 0:00:13]} 52. Nc3 {[%clk 0:00:07.5]} 52... Ne1 {[%clk
0:00:11.3]} 53. Bf1 {[%clk 0:00:07.9]} 53... Nf3 {[%clk 0:00:11.2]} 54. Bxh3
{[%clk 0:00:07.9]} 54... Nd4 {[%clk 0:00:11.2]} 55. Bf1 {[%clk 0:00:07.5]} 55...
Nxc6 {[%clk 0:00:10.4]} 56. Kg2 {[%clk 0:00:07.9]} 56... Nd4 {[%clk 0:00:10.4]}
57. Ne2 {[%clk 0:00:08.6]} 57... Nb3 {[%clk 0:00:09.8]} 58. Ng1 {[%clk 0:00:09]}
58... Nd2 {[%clk 0:00:09.7]} 59. Be2 {[%clk 0:00:07.6]} 59... Nd5 {[%clk
0:00:09.5]} 60. Nf3 {[%clk 0:00:08.5]} 60... Nc3 {[%clk 0:00:09.7]} 61. Ng5+
{[%clk 0:00:06.2]} 61... Kg7 {[%clk 0:00:09.5]} 62. Bf3 {[%clk 0:00:06]} 62...
Kf6 {[%clk 0:00:07.9]} 63. h4 {[%clk 0:00:04.4]} 63... Ke7 {[%clk 0:00:08.4]}
64. h5 {[%clk 0:00:04.4]} 64... gxh5 {[%clk 0:00:07.8]} 65. Bxh5 {[%clk
0:00:05.3]} 65... f6 {[%clk 0:00:06.4]} 66. Nf3 {[%clk 0:00:05.9]} 66... Nc4
{[%clk 0:00:04]} 67. Nd4 {[%clk 0:00:06.4]} 67... Kd6 {[%clk 0:00:03.6]} 68. Ne2
{[%clk 0:00:06.9]} 68... Nb1 {[%clk 0:00:02.8]} 69. Bf3 {[%clk 0:00:06.9]} 69...
Nbd2 {[%clk 0:00:03.7]} 70. g4 {[%clk 0:00:07.6]} 70... Kc5 {[%clk 0:00:03.7]}
71. g5 {[%clk 0:00:08.1]} 71... fxg5 {[%clk 0:00:04.3]} 72. fxg5 {[%clk
0:00:09]} 72... Ne5 {[%clk 0:00:05]} 73. Be4 {[%clk 0:00:08.8]} 73... Nxe4
{[%clk 0:00:04.2]} 74. g6 {[%clk 0:00:07.5]} 74... Nf6 {[%clk 0:00:03.6]} 75. g7
{[%clk 0:00:07.4]} 75... Kd5 {[%clk 0:00:04.2]} 76. Ng3 {[%clk 0:00:07.3]} 76...
Kd4 {[%clk 0:00:04]} 77. Nf5+ {[%clk 0:00:07.2]} 77... Ke4 {[%clk 0:00:04.4]}
78. Nxe3 {[%clk 0:00:07.9]} 78... Kxe3 {[%clk 0:00:05]} 79. Kg3 {[%clk
0:00:08.8]} 79... Ng8 {[%clk 0:00:05.8]} 80. Kh4 {[%clk 0:00:08.7]} 80... Ke4
{[%clk 0:00:06.7]} 81. Kh5 {[%clk 0:00:09.6]} 81... Kf5 {[%clk 0:00:07]} 82. Kh4
{[%clk 0:00:10.5]} 82... Kf4 {[%clk 0:00:07.5]} 83. Kh3 {[%clk 0:00:10.9]} 83...
Ng4 {[%clk 0:00:07.9]} 84. Kh4 {[%clk 0:00:11.8]} 84... Nf2 {[%clk 0:00:07.8]}
85. Kh5 {[%clk 0:00:12.2]} 85... Kg3 {[%clk 0:00:08]} 86. Kg6 {[%clk 0:00:13.1]}
86... Ng4 {[%clk 0:00:07.9]} 87. Kg5 {[%clk 0:00:12.9]} 87... N4h6 {[%clk
0:00:07.1]} 88. Kh5 {[%clk 0:00:12.4]} 88... Kf4 {[%clk 0:00:07.1]} 89. Kg6
{[%clk 0:00:13.3]} 89... Kg4 {[%clk 0:00:07]} 90. Kh7 {[%clk 0:00:12.5]} 90...
Kg5 {[%clk 0:00:07.4]} 91. Kh8 {[%clk 0:00:12.9]} 91... Kh5 {[%clk 0:00:05.4]}
92. Kh7 {[%clk 0:00:13.8]} 92... Nf6+ {[%clk 0:00:05.6]} 93. Kh8 {[%clk
0:00:14.7]} 93... Nf7# {[%clk 0:00:06.2]} 0-1

[Event "Early-Titled-Tuesday-Blitz-February-13-2024"]
[Site "Chess.com"]
[Date "2024.02.13"]
[Round "4"]
[White "Leebit02"]
[Black "BardArtem"]
[Result "0-1"]
[WhiteElo "2555"]
[BlackElo "2783"]
[TimeControl "180+1"]
[EndTime "8:44:53 PST"]
[Termination "BardArtem won on time"]

1. d4 {[%clk 0:02:59.3]} 1... Nf6 {[%clk 0:02:58]} 2. c4 {[%clk 0:02:58.8]} 2...
b6 {[%clk 0:02:57.9]} 3. Nf3 {[%clk 0:02:56.1]} 3... Bb7 {[%clk 0:02:58.2]} 4.
g3 {[%clk 0:02:56.6]} 4... g6 {[%clk 0:02:58]} 5. Bg2 {[%clk 0:02:56.1]} 5...
Bg7 {[%clk 0:02:58.9]} 6. O-O {[%clk 0:02:56]} 6... O-O {[%clk 0:02:59.4]} 7.
Re1 {[%clk 0:02:44.2]} 7... e6 {[%clk 0:02:58.4]} 8. Nc3 {[%clk 0:02:40.9]} 8...
Ne4 {[%clk 0:02:56.5]} 9. Qc2 {[%clk 0:02:25]} 9... Nxc3 {[%clk 0:02:55]} 10.
bxc3 {[%clk 0:02:24.7]} 10... d6 {[%clk 0:02:52.1]} 11. e4 {[%clk 0:02:24.2]}
11... Nd7 {[%clk 0:02:51.9]} 12. a4 {[%clk 0:02:19.3]} 12... a5 {[%clk
0:02:49.7]} 13. Ba3 {[%clk 0:02:16.9]} 13... Re8 {[%clk 0:02:43.8]} 14. Rab1
{[%clk 0:02:13.5]} 14... Qc8 {[%clk 0:02:43.7]} 15. h4 {[%clk 0:02:06]} 15... h6
{[%clk 0:02:39.2]} 16. Nd2 {[%clk 0:01:53.6]} 16... e5 {[%clk 0:02:30.1]} 17.
Qd3 {[%clk 0:01:53.4]} 17... Kh7 {[%clk 0:02:24.2]} 18. h5 {[%clk 0:01:45.1]}
18... g5 {[%clk 0:02:19.9]} 19. Bh3 {[%clk 0:01:44.4]} 19... Qd8 {[%clk
0:02:16.2]} 20. Nf1 {[%clk 0:01:32.5]} 20... Nf6 {[%clk 0:02:15.9]} 21. Bf5+
{[%clk 0:01:28.7]} 21... Kh8 {[%clk 0:02:15.8]} 22. Qf3 {[%clk 0:01:21.4]} 22...
Bc8 {[%clk 0:01:48.5]} 23. Ne3 {[%clk 0:01:19.4]} 23... Bxf5 {[%clk 0:01:42.3]}
24. Nxf5 {[%clk 0:01:19.8]} 24... Qd7 {[%clk 0:01:35.1]} 25. Nxh6 {[%clk
0:00:42.9]} 25... g4 {[%clk 0:01:32.7]} 26. Qf5 {[%clk 0:00:42.4]} 26... Qxf5
{[%clk 0:01:33.1]} 27. Nxf5 {[%clk 0:00:42]} 27... exd4 {[%clk 0:01:32.5]} 28.
cxd4 {[%clk 0:00:39.5]} 28... Nxe4 {[%clk 0:01:29.7]} 29. Rb3 {[%clk 0:00:26.9]}
29... Nd2 {[%clk 0:01:26.7]} 30. Rxe8+ {[%clk 0:00:14.7]} 30... Rxe8 {[%clk
0:01:27.6]} 31. Re3 {[%clk 0:00:14.6]} 31... Rxe3 {[%clk 0:01:27.9]} 32. fxe3
{[%clk 0:00:13.9]} 32... Nxc4 {[%clk 0:01:27.8]} 33. Bc1 {[%clk 0:00:14.3]}
33... c5 {[%clk 0:01:20.8]} 34. Kf2 {[%clk 0:00:13.7]} 34... cxd4 {[%clk
0:01:17]} 35. exd4 {[%clk 0:00:13.7]} 35... d5 {[%clk 0:01:16.5]} 36. Ke2 {[%clk
0:00:13.6]} 36... Bf8 {[%clk 0:01:09.1]} 37. Kd3 {[%clk 0:00:13.4]} 37... f6
{[%clk 0:00:58]} 38. Bf4 {[%clk 0:00:13.4]} 38... Nb2+ {[%clk 0:00:57.5]} 39.
Kc2 {[%clk 0:00:13.3]} 39... Nxa4 {[%clk 0:00:58.4]} 40. Bc7 {[%clk 0:00:12.5]}
40... Kg8 {[%clk 0:00:53.7]} 41. Bd8 {[%clk 0:00:11.8]} 41... Kf7 {[%clk
0:00:51.8]} 42. Ne3 {[%clk 0:00:09.9]} 42... Ke6 {[%clk 0:00:49.3]} 43. Nxg4
{[%clk 0:00:09.6]} 43... f5 {[%clk 0:00:48.1]} 44. Ne5 {[%clk 0:00:10.1]} 44...
Bh6 {[%clk 0:00:30.5]} 45. Nf3 {[%clk 0:00:05.1]} 45... Be3 {[%clk 0:00:21.8]}
46. Kb3 {[%clk 0:00:05.2]} 46... b5 {[%clk 0:00:16.5]} 47. Bxa5 {[%clk
0:00:05.5]} 47... Kd7 {[%clk 0:00:13.1]} 48. Nh4 {[%clk 0:00:03.3]} 48... Bxd4
{[%clk 0:00:10.2]} 49. Nxf5 {[%clk 0:00:03.8]} 49... Bf6 {[%clk 0:00:10.9]} 50.
Ne3 {[%clk 0:00:03.8]} 50... Kc6 {[%clk 0:00:09.9]} 51. Ng4 {[%clk 0:00:03.9]}
51... Bh8 {[%clk 0:00:06.3]} 52. h6 {[%clk 0:00:03.8]} 52... Nc5+ {[%clk
0:00:06.8]} 53. Kc2 {[%clk 0:00:04.4]} 53... d4 {[%clk 0:00:07.3]} 54. Bb4
{[%clk 0:00:03.5]} 54... d3+ {[%clk 0:00:07.2]} 55. Kd1 {[%clk 0:00:03.2]} 55...
Ne4 {[%clk 0:00:05.9]} 56. Bf8 {[%clk 0:00:03.2]} 56... Bc3 {[%clk 0:00:03.1]}
57. Bg7 {[%clk 0:00:02.9]} 57... b4 {[%clk 0:00:03.8]} 58. Bxc3 {[%clk
0:00:01.2]} 58... bxc3 {[%clk 0:00:04.7]} 59. h7 {[%clk 0:00:01.2]} 59... c2+
{[%clk 0:00:05]} 60. Kc1 {[%clk 0:00:01.9]} 60... Nc3 {[%clk 0:00:05.5]} 61.
h8=Q {[%clk 0:00:02.1]} 61... Na2+ {[%clk 0:00:03]} 62. Kb2 {[%clk 0:00:01.6]}
62... c1=Q+ {[%clk 0:00:03.9]} 63. Kxa2 {[%clk 0:00:02.2]} 63... d2 {[%clk
0:00:02.3]} 64. Qf6+ {[%clk 0:00:01.6]} 64... Kb5 {[%clk 0:00:02.5]} 65. Qe5+
{[%clk 0:00:01.9]} 65... Kc6 {[%clk 0:00:03.1]} 66. Qe4+ {[%clk 0:00:02.1]}
66... Kc7 {[%clk 0:00:03]} 67. Qf4+ {[%clk 0:00:02.1]} 67... Kb7 {[%clk
0:00:03.1]} 68. Qe4+ {[%clk 0:00:02.1]} 68... Ka6 {[%clk 0:00:03]} 69. Qe6+
{[%clk 0:00:02]} 69... Kb7 {[%clk 0:00:03.1]} 70. Qd5+ {[%clk 0:00:02.3]} 70...
Kb6 {[%clk 0:00:03.4]} 71. Qd4+ {[%clk 0:00:02.2]} 71... Kb5 {[%clk 0:00:03.7]}
72. Qd3+ {[%clk 0:00:02.5]} 72... Kc5 {[%clk 0:00:03.3]} 73. Ne3 {[%clk
0:00:03]} 73... Kb4 {[%clk 0:00:01.9]} 74. Qd4+ {[%clk 0:00:03.2]} 74... Kb5
{[%clk 0:00:02.2]} 75. Qd5+ {[%clk 0:00:03.4]} 75... Kb6 {[%clk 0:00:02.7]} 76.
Qb3+ {[%clk 0:00:03.4]} 76... Kc7 {[%clk 0:00:02.7]} 77. Qc2+ {[%clk 0:00:03.7]}
77... Qxc2+ {[%clk 0:00:02.8]} 78. Nxc2 {[%clk 0:00:03.8]} 78... d1=Q {[%clk
0:00:03.3]} 79. Kb2 {[%clk 0:00:03.4]} 79... Qg4 {[%clk 0:00:03.1]} 0-1

[Event "Early-Titled-Tuesday-Blitz-February-13-2024"]
[Site "Chess.com"]
[Date "2024.02.13"]
[Round "4"]
[White "itsdsyr"]
[Black "Chandradi"]
[Result "1/2-1/2"]
[WhiteElo "2316"]
[BlackElo "2513"]
[TimeControl "180+1"]
[EndTime "8:45:06 PST"]
[Termination "Game drawn by 50-move rule"]

1. e4 {[%clk 0:02:59.2]} 1... c5 {[%clk 0:02:59.7]} 2. Nf3 {[%clk 0:02:58.9]}
2... g6 {[%clk 0:02:59.7]} 3. d4 {[%clk 0:02:56.7]} 3... cxd4 {[%clk 0:03:00.6]}
4. Nxd4 {[%clk 0:02:56.6]} 4... Nc6 {[%clk 0:03:00.6]} 5. c4 {[%clk 0:02:56.4]}
5... Nf6 {[%clk 0:02:57.1]} 6. Nc3 {[%clk 0:02:56]} 6... Nxd4 {[%clk 0:02:56.8]}
7. Qxd4 {[%clk 0:02:55.8]} 7... d6 {[%clk 0:02:56.8]} 8. Be2 {[%clk 0:02:55.1]}
8... Bg7 {[%clk 0:02:57]} 9. Be3 {[%clk 0:02:55.6]} 9... O-O {[%clk 0:02:57]}
10. Qd2 {[%clk 0:02:55.9]} 10... a5 {[%clk 0:02:57.1]} 11. O-O {[%clk 0:02:49]}
11... a4 {[%clk 0:02:57.3]} 12. f3 {[%clk 0:02:40.6]} 12... Qa5 {[%clk
0:02:54.5]} 13. a3 {[%clk 0:02:31.8]} 13... Be6 {[%clk 0:02:46.3]} 14. Rfd1
{[%clk 0:02:27.1]} 14... Rfc8 {[%clk 0:02:44.6]} 15. Nd5 {[%clk 0:02:23.5]}
15... Qxd2 {[%clk 0:02:36]} 16. Rxd2 {[%clk 0:02:21]} 16... Bxd5 {[%clk
0:02:27.3]} 17. exd5 {[%clk 0:02:15.9]} 17... Nd7 {[%clk 0:02:22.2]} 18. f4
{[%clk 0:02:09.5]} 18... Nc5 {[%clk 0:02:19.4]} 19. Bxc5 {[%clk 0:02:05.5]}
19... Rxc5 {[%clk 0:02:18.9]} 20. Re1 {[%clk 0:01:52.7]} 20... Kf8 {[%clk
0:02:15.6]} 21. Kf2 {[%clk 0:01:51.2]} 21... Ra6 {[%clk 0:02:10.9]} 22. Rc1
{[%clk 0:01:41.9]} 22... Rb6 {[%clk 0:02:10]} 23. Rcc2 {[%clk 0:01:42.1]} 23...
h5 {[%clk 0:02:08.7]} 24. g3 {[%clk 0:01:41.8]} 24... Rb3 {[%clk 0:01:59.6]} 25.
h4 {[%clk 0:01:39.5]} 25... Ra5 {[%clk 0:01:46.9]} 26. Kg2 {[%clk 0:01:30.7]}
26... Ra8 {[%clk 0:01:36.4]} 27. Kf2 {[%clk 0:01:24]} 27... Bf6 {[%clk
0:01:35.5]} 28. Kg2 {[%clk 0:01:23.3]} 28... Ke8 {[%clk 0:01:35.7]} 29. Kf2
{[%clk 0:00:53.8]} 29... Ra5 {[%clk 0:01:35.2]} 30. Kg2 {[%clk 0:00:53.4]} 30...
Kd8 {[%clk 0:01:35.1]} 31. Kf2 {[%clk 0:00:46.7]} 31... Kc7 {[%clk 0:01:35.1]}
32. Kg2 {[%clk 0:00:46.3]} 32... Kb6 {[%clk 0:01:34.1]} 33. Kf2 {[%clk
0:00:43.1]} 33... Kc5 {[%clk 0:01:34.3]} 34. Bd3 {[%clk 0:00:13.9]} 34... Ra6
{[%clk 0:01:30.3]} 35. Be2 {[%clk 0:00:13.1]} 35... Rab6 {[%clk 0:01:29.8]} 36.
Bd1 {[%clk 0:00:13.6]} 36... Bd4+ {[%clk 0:01:21.9]} 37. Kg2 {[%clk 0:00:12]}
37... f6 {[%clk 0:01:13.4]} 38. Re2 {[%clk 0:00:11.8]} 38... Rxb2 {[%clk
0:01:07.6]} 39. Rxb2 {[%clk 0:00:08.2]} 39... Rxb2 {[%clk 0:01:06.7]} 40. Rxb2
{[%clk 0:00:08.6]} 40... Bxb2 {[%clk 0:01:07.6]} 41. Bxa4 {[%clk 0:00:09.5]}
41... Kxc4 {[%clk 0:01:03.7]} 42. Be8 {[%clk 0:00:08.5]} 42... g5 {[%clk
0:00:57.1]} 43. Bxh5 {[%clk 0:00:06.5]} 43... gxh4 {[%clk 0:00:50.1]} 44. gxh4
{[%clk 0:00:06.5]} 44... Kxd5 {[%clk 0:00:50.7]} 45. Bf3+ {[%clk 0:00:05.5]}
45... Ke6 {[%clk 0:00:50.7]} 46. Bxb7 {[%clk 0:00:05.2]} 46... Bxa3 {[%clk
0:00:50.5]} 47. Kf3 {[%clk 0:00:05.8]} 47... Kf7 {[%clk 0:00:47.8]} 48. f5
{[%clk 0:00:04.8]} 48... Kg7 {[%clk 0:00:46.8]} 49. Kg4 {[%clk 0:00:04.3]} 49...
Kh6 {[%clk 0:00:47.2]} 50. Bd5 {[%clk 0:00:05.2]} 50... Bb2 {[%clk 0:00:46.8]}
51. Be6 {[%clk 0:00:05.5]} 51... Bc1 {[%clk 0:00:44.9]} 52. Bd5 {[%clk 0:00:05]}
52... Kg7 {[%clk 0:00:45.1]} 53. Be6 {[%clk 0:00:05.2]} 53... Kf8 {[%clk
0:00:45.3]} 54. Bd7 {[%clk 0:00:04.2]} 54... Kf7 {[%clk 0:00:44.7]} 55. Be6+
{[%clk 0:00:04.5]} 55... Kf8 {[%clk 0:00:45]} 56. Kh5 {[%clk 0:00:03.6]} 56...
Kg7 {[%clk 0:00:44.8]} 57. Kg4 {[%clk 0:00:03.4]} 57... Bd2 {[%clk 0:00:44.8]}
58. Bd5 {[%clk 0:00:03.6]} 58... Kf8 {[%clk 0:00:44.6]} 59. Be6 {[%clk
0:00:04.5]} 59... Ke8 {[%clk 0:00:44.8]} 60. Kh5 {[%clk 0:00:05.1]} 60... Be1
{[%clk 0:00:44.3]} 61. Kg6 {[%clk 0:00:05.5]} 61... Bxh4 {[%clk 0:00:43.9]} 62.
Bd5 {[%clk 0:00:05.8]} 62... Be1 {[%clk 0:00:37.8]} 63. Kg7 {[%clk 0:00:05.8]}
63... Ba5 {[%clk 0:00:36.9]} 64. Kg6 {[%clk 0:00:06.2]} 64... Kd7 {[%clk
0:00:36.4]} 65. Kf7 {[%clk 0:00:06.3]} 65... Bd8 {[%clk 0:00:27.3]} 66. Kf8
{[%clk 0:00:06.2]} 66... Kc8 {[%clk 0:00:22.9]} 67. Ke8 {[%clk 0:00:06.2]} 67...
Kc7 {[%clk 0:00:20.8]} 68. Be4 {[%clk 0:00:03]} 68... d5 {[%clk 0:00:20.4]} 69.
Bxd5 {[%clk 0:00:03.3]} 69... Kd6 {[%clk 0:00:21.1]} 70. Be6 {[%clk 0:00:04.2]}
70... Bc7 {[%clk 0:00:20.6]} 71. Kf7 {[%clk 0:00:04.3]} 71... Ba5 {[%clk
0:00:21]} 72. Kf8 {[%clk 0:00:04.8]} 72... Bb4 {[%clk 0:00:21.6]} 73. Kf7 {[%clk
0:00:05.7]} 73... Ke5 {[%clk 0:00:22.3]} 74. Kf8 {[%clk 0:00:06.6]} 74... Bd6
{[%clk 0:00:23.1]} 75. Kf7 {[%clk 0:00:07.5]} 75... Kf4 {[%clk 0:00:24]} 76. Kf8
{[%clk 0:00:08.4]} 76... Kg5 {[%clk 0:00:24.8]} 77. Kf7 {[%clk 0:00:09.3]} 77...
Kh6 {[%clk 0:00:25.5]} 78. Kf8 {[%clk 0:00:10.2]} 78... Kh7 {[%clk 0:00:26.2]}
79. Kf7 {[%clk 0:00:11.1]} 79... Kh6 {[%clk 0:00:26]} 80. Kf8 {[%clk 0:00:12]}
80... Kg5 {[%clk 0:00:26.9]} 81. Kf7 {[%clk 0:00:12.9]} 81... Kf4 {[%clk
0:00:27.8]} 82. Kf8 {[%clk 0:00:13.6]} 82... Kg3 {[%clk 0:00:28.7]} 83. Kf7
{[%clk 0:00:14.5]} 83... Kh2 {[%clk 0:00:29.6]} 84. Kf8 {[%clk 0:00:15.4]} 84...
Kg1 {[%clk 0:00:30.5]} 85. Kf7 {[%clk 0:00:16.2]} 85... Kf1 {[%clk 0:00:31.4]}
86. Kf8 {[%clk 0:00:17.1]} 86... Ke1 {[%clk 0:00:32.3]} 87. Kf7 {[%clk 0:00:18]}
87... Kd1 {[%clk 0:00:33.2]} 88. Kf8 {[%clk 0:00:18.9]} 88... Kc1 {[%clk
0:00:34.1]} 89. Kf7 {[%clk 0:00:19.8]} 89... Kb2 {[%clk 0:00:34.7]} 90. Kf8
{[%clk 0:00:20.7]} 90... Ka3 {[%clk 0:00:35.6]} 91. Kf7 {[%clk 0:00:21.6]} 91...
Kb4 {[%clk 0:00:36.5]} 92. Kf8 {[%clk 0:00:22.3]} 92... Ka5 {[%clk 0:00:37.4]}
93. Kf7 {[%clk 0:00:23.2]} 93... Kb6 {[%clk 0:00:38.3]} 94. Kf8 {[%clk 0:00:24]}
94... Kc7 {[%clk 0:00:39.2]} 95. Kf7 {[%clk 0:00:24.8]} 95... Bc5 {[%clk
0:00:40.1]} 96. Kf8 {[%clk 0:00:25.5]} 96... Kd6 {[%clk 0:00:41]} 97. Kf7 {[%clk
0:00:26.2]} 97... Bd4 {[%clk 0:00:41.8]} 98. Kf8 {[%clk 0:00:27.1]} 98... Be3
{[%clk 0:00:42.7]} 99. Kf7 {[%clk 0:00:28]} 99... Bh6 {[%clk 0:00:43.6]} 100.
Ke8 {[%clk 0:00:27.6]} 100... Bg7 {[%clk 0:00:42.4]} 101. Kf7 {[%clk 0:00:28.5]}
101... Bh6 {[%clk 0:00:42.7]} 102. Kg6 {[%clk 0:00:29.4]} 102... Bg5 {[%clk
0:00:42.7]} 103. Kf7 {[%clk 0:00:30.3]} 103... Bf4 {[%clk 0:00:42.9]} 104. Kg6
{[%clk 0:00:31.2]} 104... Be5 {[%clk 0:00:43.8]} 105. Kf7 {[%clk 0:00:32]}
105... Bd4 {[%clk 0:00:44.7]} 106. Kg6 {[%clk 0:00:32.8]} 106... Bc3 {[%clk
0:00:45.6]} 107. Kf7 {[%clk 0:00:33.5]} 107... Bb2 {[%clk 0:00:46.5]} 108. Ke8
{[%clk 0:00:34.4]} 108... Ba1 {[%clk 0:00:47.4]} 109. Kf7 {[%clk 0:00:35.3]}
109... Bb2 {[%clk 0:00:48.3]} 110. Kg6 {[%clk 0:00:36.2]} 110... Ba3 {[%clk
0:00:49.2]} 111. Kf7 {[%clk 0:00:36.9]} 111... Bb4 {[%clk 0:00:50.1]} 112. Kg6
{[%clk 0:00:37.8]} 112... Bc5 {[%clk 0:00:51]} 113. Kf7 {[%clk 0:00:38.7]}
113... Bb4 {[%clk 0:00:51.9]} 114. Kg6 {[%clk 0:00:39.6]} 114... Ke5 {[%clk
0:00:52.8]} 115. Kf7 {[%clk 0:00:40.5]} 115... Kf4 {[%clk 0:00:53.4]} 116. Kg6
{[%clk 0:00:41.4]} 116... Kg4 {[%clk 0:00:54]} 117. Kf7 {[%clk 0:00:42.3]}
117... Kg5 {[%clk 0:00:54.7]} 118. Ke8 {[%clk 0:00:43.2]} 118... Kh6 {[%clk
0:00:54.2]} 119. Kd7 {[%clk 0:00:44.1]} 1/2-1/2